bitfinex/quotes_BTCUSD_20220731
["timestamp","ask_amount","ask_price","bid_price","bid_amount"]
[1659245227642,0.40725733,23757.0,23754.0,0.13067316]
[1659245227858,0.64051678,23758.0,23757.0,0.10032816]
[1659245228108,0.64051678,23758.0,23757.0,0.40432016]
[1659245228374,0.64051678,23758.0,23757.0,1.12504216]
[1659245228592,0.64051678,23758.0,23757.0,1.12549422]
[1659245229049,0.64051678,23758.0,23757.0,0.86016738]
[1659245229528,0.64051678,23758.0,23757.0,1.16016738]
[1659245229760,0.64051678,23758.0,23757.0,0.86016738]
[1659245231088,0.64051678,23758.0,23757.0,1.16016738]
[1659245231522,0.64051678,23758.0,23757.0,0.86016738]
[1659245231852,0.64051678,23758.0,23757.0,0.82504216]
[1659245232074,0.64051678,23758.0,23757.0,0.52105016]
[1659245232295,0.64051678,23758.0,23757.0,0.82504216]
[1659245232944,0.64051678,23758.0,23757.0,0.85971532]
[1659245233171,0.64051678,23758.0,23757.0,1.15971532]
[1659245233854,0.64051678,23758.0,23757.0,0.40432016]
[1659245234080,0.64051678,23758.0,23754.0,0.50325733]
[1659245234081,0.94450878,23758.0,23754.0,0.50325733]
[1659245234307,0.64051678,23758.0,23754.0,0.50325733]
[1659245234546,0.64051678,23758.0,23755.0,0.03467316]
[1659245234773,0.64051678,23758.0,23754.0,0.50325733]
[1659245235228,0.64051678,23758.0,23755.0,0.303992]
[1659245235460,0.64051678,23758.0,23754.0,0.50325733]
[1659245235972,0.68351678,23758.0,23754.0,0.50325733]
[1659245237111,0.64051678,23758.0,23754.0,0.50325733]
[1659245237341,0.64051678,23758.0,23755.0,0.03467316]
[1659245237565,0.64051678,23758.0,23754.0,0.09632816]
[1659245237784,0.70151678,23758.0,23754.0,0.09632816]
[1659245238901,0.70151678,23758.0,23755.0,0.05]
[1659245238902,1.10877411,23758.0,23755.0,0.05]
[1659245239112,1.10877411,23758.0,23754.0,0.09632816]
[1659245239568,1.04777411,23758.0,23754.0,0.09632816]
[1659245239799,1.11377411,23758.0,23754.0,0.09632816]
[1659245240026,1.11377411,23758.0,23755.0,0.05]
[1659245240249,0.71124933,23757.0,23754.0,0.096]
[1659245240480,0.45,23755.0,23754.0,0.096]
[1659245240708,1.16124933,23755.0,23754.0,0.096]
[1659245240926,0.71124933,23755.0,23754.0,0.096]
[1659245241159,0.40725733,23755.0,23754.0,0.096]
[1659245241839,0.068,23755.0,23754.0,0.096]
[1659245242064,0.068,23755.0,23754.0,0.13067316]
[1659245242338,0.068,23755.0,23754.0,0.43466516]
[1659245243006,0.068,23755.0,23754.0,0.399992]
[1659245243230,0.64051678,23758.0,23754.0,0.096]
[1659245243472,1.04777411,23758.0,23754.0,0.096]
[1659245243688,1.04777411,23758.0,23754.0,0.09632816]
[1659245243923,1.10077411,23758.0,23754.0,0.09632816]
[1659245245733,1.04777411,23758.0,23754.0,0.09632816]
[1659245245960,1.12677411,23758.0,23754.0,0.09632816]
[1659245246189,1.12677411,23758.0,23754.0,0.096]
[1659245246190,0.70725733,23757.0,23754.0,0.096]
[1659245246400,1.10692917,23756.0,23754.0,0.096]
[1659245246636,1.55929517,23755.0,23754.0,0.096]
[1659245247093,1.59089517,23755.0,23754.0,0.096]
[1659245247357,1.59089517,23755.0,23754.0,0.09593346]
[1659245247358,0.59089517,23755.0,23754.0,0.09593346]
[1659245247807,0.66989517,23755.0,23754.0,0.09593346]
[1659245248244,0.63829517,23755.0,23754.0,0.09593346]
[1659245249170,0.89089517,23755.0,23754.0,0.09593346]
[1659245249823,0.96989517,23755.0,23754.0,0.09593346]
[1659245250045,0.93829517,23755.0,23754.0,0.09593346]
[1659245250269,0.63829517,23755.0,23754.0,0.09593346]
[1659245251663,0.55929517,23755.0,23754.0,0.09593346]
[1659245251885,0.63829517,23755.0,23754.0,0.09593346]
[1659245253231,0.55929517,23755.0,23754.0,0.09593346]
[1659245253909,0.63829517,23755.0,23754.0,0.09593346]
[1659245255334,0.58862333,23755.0,23754.0,0.09593346]
[1659245255559,0.48625733,23755.0,23754.0,0.09593346]
[1659245255786,0.56625733,23755.0,23754.0,0.09593346]
[1659245256250,0.48725733,23755.0,23754.0,0.09593346]
[1659245257602,0.08,23755.0,23754.0,0.09593346]
[1659245257846,0.05,23755.0,23754.0,0.09593346]
[1659245258052,0.05,23755.0,23754.0,0.18626162]
[1659245259226,0.64051678,23758.0,23754.0,0.18626162]
[1659245259446,0.71124933,23757.0,23756.0,0.09]
[1659245261663,0.71124933,23757.0,23755.0,0.09]
[1659245261885,0.102366,23756.0,23755.0,0.09]
[1659245262104,0.50962333,23756.0,23755.0,0.09]
[1659245263951,0.58862333,23756.0,23755.0,0.09]
[1659245265308,0.50962333,23756.0,23755.0,0.09]
[1659245265944,0.57062333,23756.0,23755.0,0.09]
[1659245267129,0.50962333,23756.0,23755.0,0.09]
[1659245267791,0.50962333,23756.0,23752.0,0.09]
[1659245268014,0.40725733,23755.0,23752.0,0.09]
[1659245268248,0.40725733,23755.0,23754.0,0.09]
[1659245268472,0.71124933,23755.0,23754.0,0.09]
[1659245272098,0.79024933,23755.0,23754.0,0.09]
[1659245273620,0.79024933,23755.0,23751.0,0.09]
[1659245273621,0.71124933,23755.0,23751.0,0.09]
[1659245273850,0.40725733,23754.0,23751.0,0.09]
[1659245274068,0.66178717,23754.0,23753.0,0.09]
[1659245274581,0.86977917,23754.0,23753.0,0.09]
[1659245274817,0.56578717,23754.0,23753.0,0.09]
[1659245275291,0.86977917,23754.0,23753.0,0.09]
[1659245275502,0.61524933,23754.0,23753.0,0.09]
[1659245275730,0.31125733,23754.0,23753.0,0.09]
[1659245276400,0.69424933,23754.0,23753.0,0.09]
[1659245277530,0.69424933,23754.0,23751.0,0.09]
[1659245277753,0.40725733,23754.0,23751.0,0.03467316]
[1659245278241,0.40725733,23754.0,23751.0,0.00032816]
[1659245278497,0.40725733,23754.0,23752.0,0.05]
[1659245278728,0.65366384,23753.0,23746.0,0.0015]
[1659245278960,0.80962333,23752.0,23745.0,0.54803539]
[1659245279190,0.71124933,23751.0,23745.0,0.5479]
[1659245279425,0.70725733,23751.0,23745.0,0.5479]
[1659245280331,0.40725733,23750.0,23745.0,0.5479]
[1659245280568,0.40725733,23750.0,23745.0,0.54822816]
[1659245281053,0.40725733,23750.0,23746.0,0.514471]
[1659245281277,0.40725733,23750.0,23747.0,0.03467316]
[1659245281502,0.40725733,23750.0,23747.0,0.03500132]
[1659245281945,0.40725733,23750.0,23747.0,0.03467316]
[1659245282267,0.40725733,23750.0,23746.0,0.210479]
[1659245282495,0.44825733,23750.0,23746.0,0.210479]
[1659245282715,0.44825733,23750.0,23747.0,0.03467316]
[1659245282930,0.44825733,23750.0,23746.0,0.510479]
[1659245283851,0.44825733,23750.0,23747.0,0.03467316]
[1659245284305,0.40725733,23750.0,23747.0,0.03467316]
[1659245284529,0.44825733,23750.0,23746.0,0.510479]
[1659245284766,0.44825733,23750.0,23746.0,0.210479]
[1659245284981,0.44825733,23750.0,23746.0,0.205479]
[1659245285651,0.40725733,23750.0,23746.0,0.205479]
[1659245286159,0.40725733,23750.0,23747.0,0.05]
[1659245286389,0.40725733,23750.0,23746.0,0.205479]
[1659245286390,0.44825733,23750.0,23746.0,0.205479]
[1659245286620,0.40725733,23749.0,23746.0,0.205479]
[1659245287081,0.40725733,23749.0,23747.0,0.05]
[1659245287318,0.40725733,23749.0,23746.0,0.00032816]
[1659245287542,0.40725733,23749.0,23745.0,0.5479]
[1659245288235,0.40725733,23749.0,23745.0,0.54822816]
[1659245288456,0.44825733,23749.0,23746.0,0.33366516]
[1659245288683,0.44825733,23749.0,23747.0,0.303992]
[1659245288903,0.44825733,23749.0,23747.0,0.00032816]
[1659245289135,0.44825733,23749.0,23745.0,0.758389]
[1659245289352,0.74825733,23749.0,23745.0,0.758389]
[1659245289593,0.44825733,23749.0,23745.0,0.758389]
[1659245289882,0.40725733,23749.0,23746.0,0.303992]
[1659245290131,0.40725733,23749.0,23745.0,0.758389]
[1659245290358,0.44825733,23749.0,23745.0,0.758389]
[1659245290580,0.44825733,23749.0,23746.0,0.303992]
[1659245290799,0.44825733,23749.0,23745.0,0.758389]
[1659245291700,0.40725733,23749.0,23745.0,0.758389]
[1659245291924,0.40725733,23749.0,23746.0,0.33366517]
[1659245292148,0.3,23752.0,23748.0,0.15032816]
[1659245292149,0.70725733,23752.0,23748.0,0.15032816]
[1659245292384,0.54998,23748.0,23747.0,0.00032816]
[1659245292619,0.60960333,23748.0,23744.0,0.5947]
[1659245292872,0.71124933,23747.0,23745.0,0.05]
[1659245293103,0.40725733,23746.0,23742.0,0.756024]
[1659245293329,0.005,23745.0,23742.0,0.756024]
[1659245293561,0.00370429,23745.0,23743.0,0.303992]
[1659245293842,0.00370429,23745.0,23744.0,0.303992]
[1659245294088,0.14813429,23745.0,23744.0,0.303992]
[1659245294320,0.14813429,23745.0,23742.0,0.756024]
[1659245294554,0.22713429,23745.0,23742.0,0.210524]
[1659245294785,0.22713429,23745.0,23742.0,0.21085216]
[1659245295015,0.079,23745.0,23742.0,0.21085216]
[1659245295240,0.079,23745.0,23743.0,0.303992]
[1659245295463,0.079,23745.0,23744.0,0.303992]
[1659245295688,0.3,23749.0,23743.0,0.00032816]
[1659245295911,0.40725733,23748.0,23743.0,0.00032816]
[1659245296163,0.40725733,23748.0,23744.0,0.210501]
[1659245296401,0.00370429,23747.0,23744.0,0.210501]
[1659245296624,0.00370429,23747.0,23745.0,0.03096887]
[1659245297050,0.00370429,23747.0,23744.0,0.210501]
[1659245297282,0.40725733,23746.0,23740.0,0.0011]
[1659245297572,0.40725733,23746.0,23741.0,0.303992]
[1659245297804,0.40725733,23746.0,23740.0,0.410345]
[1659245298023,0.40725733,23746.0,23743.0,0.210506]
[1659245298460,0.45925733,23746.0,23743.0,0.210506]
[1659245298932,0.45925733,23746.0,23744.0,0.05]
[1659245299153,0.00370429,23745.0,23743.0,0.21083416]
[1659245299374,0.00370429,23745.0,23744.0,0.353992]
[1659245299596,0.45925733,23746.0,23743.0,0.24147487]
[1659245299822,0.3,23749.0,23743.0,0.24147487]
[1659245300082,0.40725733,23749.0,23744.0,0.303992]
[1659245300323,0.3639,23750.0,23745.0,0.210492]
[1659245300542,0.079,23746.0,23745.0,0.210492]
[1659245300764,0.079,23746.0,23745.0,0.54545287]
[1659245300991,0.08270429,23746.0,23745.0,0.210492]
[1659245301214,0.08270429,23746.0,23742.0,0.210514]
[1659245301481,0.08270429,23746.0,23743.0,0.303992]
[1659245301746,0.00370429,23746.0,23742.0,0.210514]
[1659245301962,0.00370429,23746.0,23743.0,0.303992]
[1659245302192,0.00370429,23746.0,23744.0,0.303992]
[1659245302418,0.07870429,23746.0,23742.0,0.210514]
[1659245302650,0.075,23746.0,23743.0,0.303992]
[1659245302870,0.075,23746.0,23744.0,0.303992]
[1659245303098,0.075,23746.0,23742.0,0.210514]
[1659245303331,0.07870429,23746.0,23743.0,0.303992]
[1659245303550,0.07870429,23746.0,23742.0,0.210514]
[1659245303774,0.00370429,23746.0,23743.0,0.30432016]
[1659245304064,0.00370429,23746.0,23742.0,0.210514]
[1659245304511,0.08270429,23746.0,23741.0,0.5437]
[1659245305229,1.01124933,23745.0,23737.0,0.61163687]
[1659245305507,0.80962333,23744.0,23737.0,0.0011]
[1659245305724,0.04967184,23738.0,23737.0,0.0011]
[1659245305948,0.0439451,23737.0,23736.0,0.785764]
[1659245306171,0.70725733,23742.0,23736.0,0.81673287]
[1659245306401,0.026,23738.0,23736.0,0.81673287]
[1659245306678,0.026,23738.0,23737.0,0.303992]
[1659245307810,0.40725733,23741.0,23737.0,0.303992]
[1659245308060,0.40725733,23741.0,23736.0,0.81673287]
[1659245308278,0.40725733,23741.0,23737.0,0.303992]
[1659245308500,0.48525733,23741.0,23737.0,0.0060549]
[1659245308720,0.48525733,23741.0,23736.0,0.81673287]
[1659245308938,0.48525733,23741.0,23736.0,0.81173287]
[1659245309164,0.48525733,23741.0,23736.0,0.81778777]
[1659245309408,0.48525733,23741.0,23736.0,0.81173287]
[1659245309637,0.48525733,23741.0,23736.0,0.81778777]
[1659245309852,0.40725733,23741.0,23736.0,0.81173287]
[1659245310297,0.40725733,23741.0,23737.0,0.303992]
[1659245310527,0.00370429,23740.0,23737.0,0.0060549]
[1659245310747,0.00370429,23740.0,23738.0,0.303992]
[1659245310971,0.40725733,23741.0,23736.0,0.81173287]
[1659245311206,0.48525733,23741.0,23737.0,0.303992]
[1659245311419,0.48525733,23741.0,23738.0,0.353992]
[1659245311633,0.00370429,23740.0,23736.0,0.780764]
[1659245311945,0.48525733,23741.0,23737.0,0.303992]
[1659245312169,0.48525733,23741.0,23737.0,0.03096887]
[1659245312394,0.059,23740.0,23737.0,0.03096887]
[1659245312614,0.06270429,23740.0,23738.0,0.303992]
[1659245312837,0.059,23740.0,23739.0,0.303992]
[1659245313057,0.059,23740.0,23738.0,0.0060549]
[1659245313298,0.059,23740.0,23736.0,0.780764]
[1659245313515,0.059,23740.0,23737.0,0.303992]
[1659245313753,0.00370429,23739.0,23737.0,0.303992]
[1659245313963,0.3,23744.0,23737.0,0.303992]
[1659245314220,0.40725733,23743.0,23736.0,0.780764]
[1659245314448,0.036,23740.0,23736.0,0.780764]
[1659245314677,0.00370429,23739.0,23737.0,0.303992]
[1659245314895,0.00370429,23739.0,23738.0,0.303992]
[1659245315342,0.00370429,23739.0,23736.0,0.780764]
[1659245315554,0.00370429,23739.0,23737.0,0.303992]
[1659245315810,0.00370429,23739.0,23736.0,0.780764]
[1659245316027,0.00370429,23739.0,23737.0,0.303992]
[1659245316261,0.00370429,23739.0,23738.0,0.303992]
[1659245316702,0.3,23742.0,23738.0,0.03096887]
[1659245316920,0.40725733,23742.0,23736.0,0.780764]
[1659245317418,0.036,23739.0,23737.0,0.304154]
[1659245317634,0.036,23739.0,23738.0,0.304154]
[1659245317856,0.036,23739.0,23736.0,0.780764]
[1659245318096,0.036,23739.0,23737.0,0.304154]
[1659245318317,0.036,23739.0,23736.0,0.780764]
[1659245318523,0.072,23739.0,23736.0,0.780764]
[1659245318750,0.40725733,23742.0,23737.0,0.304154]
[1659245318980,0.40725733,23742.0,23736.0,0.780764]
[1659245319416,0.40725733,23742.0,23737.0,0.35]
[1659245319749,0.40725733,23742.0,23738.0,0.304154]
[1659245319858,0.40725733,23742.0,23738.0,0.514708]
[1659245320093,0.00370429,23741.0,23738.0,0.210554]
[1659245320310,0.00370429,23741.0,23739.0,0.304154]
[1659245320532,0.00370429,23741.0,23740.0,0.304154]
[1659245320755,0.00370429,23741.0,23738.0,0.210554]
[1659245321453,0.00370429,23741.0,23739.0,0.304154]
[1659245321678,0.00370429,23741.0,23740.0,0.05]
[1659245321903,0.00370429,23741.0,23738.0,0.210554]
[1659245322135,0.00370429,23741.0,23739.0,0.304154]
[1659245322377,0.00370429,23741.0,23739.0,0.0060549]
[1659245322608,0.00370429,23741.0,23740.0,0.05]
[1659245322827,0.00370429,23741.0,23738.0,0.210554]
[1659245323268,0.03970429,23741.0,23738.0,0.210554]
[1659245323514,0.03970429,23741.0,23739.0,0.304154]
[1659245323723,0.03970429,23741.0,23739.0,0.0060549]
[1659245323933,0.03970429,23741.0,23738.0,0.210554]
[1659245324160,0.03970429,23741.0,23739.0,0.304154]
[1659245324387,0.036,23741.0,23740.0,0.304154]
[1659245324603,0.40725733,23742.0,23739.0,0.03096887]
[1659245324822,0.036,23741.0,23738.0,0.260554]
[1659245325075,0.036,23741.0,23739.0,0.304154]
[1659245325291,0.036,23741.0,23740.0,0.304154]
[1659245325520,0.036,23741.0,23738.0,0.210554]
[1659245325737,0.036,23741.0,23739.0,0.304154]
[1659245325970,0.036,23741.0,23738.0,0.24152287]
[1659245326434,0.40725733,23742.0,23739.0,0.294154]
[1659245326436,0.078,23741.0,23739.0,0.294154]
[1659245326656,0.078,23741.0,23740.0,0.05]
[1659245326872,0.078,23741.0,23739.0,0.0060549]
[1659245327089,0.078,23741.0,23740.0,0.304141]
[1659245327313,0.078,23741.0,23738.0,0.210554]
[1659245327559,0.078,23741.0,23739.0,0.304141]
[1659245327812,0.40725733,23742.0,23740.0,0.304141]
[1659245328037,0.40725733,23742.0,23739.0,0.0060549]
[1659245328277,0.40425733,23742.0,23738.0,0.260554]
[1659245328520,0.036,23741.0,23739.0,0.304141]
[1659245328742,0.036,23741.0,23740.0,0.304141]
[1659245328976,0.036,23741.0,23739.0,0.0060549]
[1659245329201,0.03970429,23741.0,23740.0,0.304141]
[1659245329429,0.036,23741.0,23738.0,0.260554]
[1659245329653,0.036,23741.0,23739.0,0.304141]
[1659245329871,0.036,23741.0,23740.0,0.304141]
[1659245330366,0.00370429,23741.0,23740.0,0.304141]
[1659245330601,0.03970429,23741.0,23740.0,0.304141]
[1659245330827,0.03970429,23741.0,23738.0,0.631647]
[1659245331048,0.03970429,23741.0,23739.0,0.604141]
[1659245331277,0.03970429,23741.0,23740.0,0.354141]
[1659245331515,0.03970429,23741.0,23739.0,0.0060549]
[1659245331753,0.03970429,23741.0,23740.0,0.304141]
[1659245331991,0.3713,23754.0,23741.0,0.0037]
[1659245332227,0.3713,23754.0,23744.0,0.631465]
[1659245332228,0.40725733,23750.0,23744.0,0.631465]
[1659245332477,0.40725733,23750.0,23745.0,0.604141]
[1659245332744,0.40725733,23750.0,23746.0,0.935557]
[1659245332978,0.40725733,23750.0,23747.0,0.604141]
[1659245333206,0.40725733,23750.0,23746.0,0.681416]
[1659245333207,0.40725733,23750.0,23746.0,0.736646]
[1659245333689,0.40725733,23750.0,23747.0,0.604141]
[1659245333919,0.40725733,23750.0,23748.0,0.304141]
[1659245334152,0.40725733,23750.0,23748.0,0.21047]
[1659245334382,0.47825733,23750.0,23748.0,0.21047]
[1659245334613,0.47825733,23750.0,23749.0,0.304141]
[1659245335068,0.47825733,23750.0,23748.0,0.631386]
[1659245335298,0.47825733,23750.0,23749.0,0.304141]
[1659245335560,0.47825733,23750.0,23748.0,0.631386]
[1659245335561,0.48196162,23750.0,23748.0,0.631386]
[1659245335796,0.41096162,23750.0,23749.0,0.304141]
[1659245336018,0.41096162,23750.0,23748.0,0.631386]
[1659245336019,0.40725733,23750.0,23748.0,0.631386]
[1659245336247,0.40725733,23750.0,23748.0,0.21047]
[1659245336468,0.46625733,23750.0,23749.0,0.1060549]
[1659245336687,0.46996162,23750.0,23749.0,0.1060549]
[1659245336905,0.46625733,23750.0,23748.0,0.20547]
[1659245337581,0.00370429,23749.0,23748.0,0.20547]
[1659245337852,0.00370429,23749.0,23748.0,0.509611]
[1659245338301,0.40725733,23750.0,23748.0,0.20547]
[1659245338523,0.08,23749.0,23748.0,0.20547]
[1659245338745,0.08370429,23749.0,23748.0,0.509611]
[1659245338965,0.08370429,23749.0,23748.0,0.20547]
[1659245339671,0.30784529,23749.0,23748.0,0.20547]
[1659245339892,0.09998,23749.0,23748.0,0.20547]
[1659245340117,0.40725733,23750.0,23748.0,0.20547]
[1659245340374,0.079,23749.0,23748.0,0.20547]
[1659245342208,0.40725733,23750.0,23748.0,0.20547]
[1659245342427,0.079,23749.0,23748.0,0.20547]
[1659245343617,0.079,23749.0,23748.0,0.23643887]
[1659245343835,0.00370429,23750.0,23748.0,0.20547]
[1659245344062,0.3713,23754.0,23749.0,0.1060549]
[1659245344304,0.71139833,23753.0,23749.0,0.1060549]
[1659245344528,0.40725733,23752.0,23749.0,0.1060549]
[1659245344760,0.40725733,23752.0,23748.0,0.20547]
[1659245344761,0.00370429,23751.0,23748.0,0.20547]
[1659245344985,0.41096162,23751.0,23748.0,0.20547]
[1659245346411,0.49096162,23751.0,23748.0,0.20547]
[1659245348272,0.41096162,23751.0,23748.0,0.20547]
[1659245348719,0.304141,23750.0,23748.0,0.20547]
[1659245349192,0.412266,23749.0,23748.0,0.2115249]
[1659245349430,0.49096162,23751.0,23748.0,0.2115249]
[1659245349647,0.304141,23750.0,23748.0,0.20547]
[1659245349886,0.49096162,23751.0,23748.0,0.20547]
[1659245350100,0.304141,23750.0,23748.0,0.20547]
[1659245350320,0.49096162,23751.0,23748.0,0.20547]
[1659245350539,0.079,23750.0,23748.0,0.2115249]
[1659245351701,0.41096162,23751.0,23748.0,0.2115249]
[1659245351922,0.304141,23750.0,23748.0,0.2115249]
[1659245352164,0.41096162,23751.0,23749.0,0.05]
[1659245352390,0.304141,23750.0,23749.0,0.0060549]
[1659245352631,0.48996162,23751.0,23748.0,0.20547]
[1659245353088,0.304141,23750.0,23748.0,0.20547]
[1659245353368,0.48996162,23751.0,23748.0,0.20547]
[1659245353602,0.304141,23750.0,23749.0,0.05]
[1659245353832,0.304141,23750.0,23748.0,0.2115249]
[1659245354082,0.112266,23749.0,23748.0,0.2115249]
[1659245354300,0.05,23747.0,23742.0,0.00012747]
[1659245354538,1.0,23743.0,23742.0,0.00012747]
[1659245354772,1.71139833,23743.0,23742.0,0.00012747]
[1659245355249,1.66139833,23743.0,23735.0,0.3632]
[1659245355487,0.40725733,23742.0,23735.0,0.3632]
[1659245356453,0.48325733,23742.0,23735.0,0.3632]
[1659245356669,0.40725733,23741.0,23735.0,0.3632]
[1659245356895,0.40725733,23741.0,23736.0,0.210553]
[1659245357395,0.076,23742.0,23736.0,0.210553]
[1659245357396,0.48325733,23742.0,23737.0,0.304141]
[1659245357620,0.40725733,23742.0,23736.0,0.210553]
[1659245358313,0.70725733,23742.0,23736.0,0.210553]
[1659245358574,0.76125733,23742.0,23736.0,0.210553]
[1659245358798,0.46125733,23742.0,23736.0,0.210553]
[1659245359057,0.46125733,23742.0,23735.0,0.3011]
[1659245359283,0.46125733,23742.0,23735.0,0.80835733]
[1659245359517,0.46125733,23742.0,23735.0,0.40835733]
[1659245359747,0.40725733,23742.0,23735.0,0.40835733]
[1659245360417,0.40725733,23742.0,23735.0,0.0011]
[1659245360418,0.76125733,23742.0,23735.0,0.0011]
[1659245360644,0.40725733,23741.0,23735.0,0.0011]
[1659245362048,0.40725733,23741.0,23735.0,0.3011]
[1659245362274,0.40725733,23741.0,23736.0,0.304141]
[1659245362529,0.45525733,23741.0,23736.0,0.304141]
[1659245362751,0.45525733,23741.0,23735.0,0.511655]
[1659245363017,0.45525733,23741.0,23736.0,0.304141]
[1659245363236,0.45525733,23741.0,23737.0,0.304141]
[1659245363467,0.00370429,23740.0,23735.0,0.211655]
[1659245363930,0.00370429,23740.0,23735.0,0.0011]
[1659245364165,0.00370429,23740.0,23736.0,0.304141]
[1659245364382,0.05970429,23740.0,23735.0,0.0011]
[1659245365114,0.056,23740.0,23735.0,0.0011]
[1659245365333,0.056,23740.0,23736.0,0.304141]
[1659245365560,0.00370429,23739.0,23735.0,0.0011]
[1659245365801,0.00370429,23739.0,23736.0,0.304141]
[1659245366029,0.00370429,23739.0,23735.0,0.0011]
[1659245366030,0.71139833,23738.0,23735.0,0.0011]
[1659245366260,0.05,23736.0,23735.0,0.0011]
[1659245366505,0.76510262,23736.0,23735.0,0.0011]
[1659245367488,0.5619,23738.0,23735.0,0.0011]
[1659245367703,0.96915733,23738.0,23735.0,0.0011]
[1659245368368,0.71139833,23737.0,23735.0,0.0011]
[1659245368603,0.51952333,23736.0,23735.0,0.0011]
[1659245369042,0.56952333,23736.0,23735.0,0.0011]
[1659245370200,0.45725733,23736.0,23735.0,0.0011]
[1659245370431,0.48725733,23736.0,23735.0,0.0011]
[1659245370687,0.48725733,23736.0,23735.0,0.00098511]
[1659245371166,0.49096162,23736.0,23735.0,0.00098511]
[1659245371384,0.79510262,23736.0,23735.0,0.00098511]
[1659245371816,0.41096162,23736.0,23735.0,0.00098511]
[1659245372499,0.79510262,23736.0,23735.0,0.00098511]
[1659245372956,0.49096162,23736.0,23735.0,0.00098511]
[1659245373637,0.71510262,23736.0,23735.0,0.00098511]
[1659245373859,0.41096162,23736.0,23735.0,0.00098511]
[1659245374577,0.46996162,23736.0,23735.0,0.00098511]
[1659245375679,0.41096162,23736.0,23735.0,0.00098511]
[1659245375908,0.52352,23741.0,23735.0,0.00098511]
[1659245375909,0.0902,23742.0,23735.0,0.03195398]
[1659245376136,0.40725733,23741.0,23735.0,0.00098511]
[1659245376657,0.079,23736.0,23735.0,0.00098511]
[1659245377743,0.3,23740.0,23735.0,0.00098511]
[1659245377998,0.40725733,23739.0,23735.0,0.00098511]
[1659245378230,0.3,23738.0,23735.0,0.00098511]
[1659245378457,0.40725733,23738.0,23735.0,0.00098511]
[1659245379621,0.00370429,23737.0,23735.0,0.00098511]
[1659245380335,0.40725733,23738.0,23735.0,0.00098511]
[1659245380551,0.08270429,23737.0,23735.0,0.00098511]
[1659245381724,0.00370429,23737.0,23735.0,0.00098511]
[1659245382459,0.08270429,23737.0,23735.0,0.03195398]
[1659245382693,0.08270429,23737.0,23735.0,0.00098511]
[1659245383136,0.079,23737.0,23735.0,0.00098511]
[1659245383821,0.40725733,23738.0,23735.0,0.00098511]
[1659245384547,0.48625733,23738.0,23735.0,0.00098511]
[1659245385243,0.079,23738.0,23735.0,0.00098511]
[1659245385706,0.3,23740.0,23735.0,0.00098511]
[1659245385924,0.40725733,23739.0,23735.0,0.00098511]
[1659245386631,0.00370429,23738.0,23735.0,0.00098511]
[1659245388445,0.05870429,23738.0,23735.0,0.00098511]
[1659245389805,0.00370429,23738.0,23735.0,0.00098511]
[1659245390259,0.41096162,23738.0,23735.0,0.00098511]
[1659245390480,0.48996162,23738.0,23735.0,0.00098511]
[1659245391426,0.89915733,23736.0,23735.0,0.00098511]
[1659245391655,1.50329833,23736.0,23735.0,0.00098511]
[1659245392172,1.53492833,23736.0,23735.0,0.00098511]
[1659245392391,1.25129833,23736.0,23735.0,0.00098511]
[1659245392615,1.28292833,23736.0,23735.0,0.00098511]
[1659245393296,1.58292833,23736.0,23735.0,0.00098511]
[1659245393532,1.05,23734.0,23733.0,0.002]
[1659245393791,2.01142333,23734.0,23733.0,0.002]
[1659245394028,2.01142333,23734.0,23729.0,0.0003]
[1659245394029,0.05,23730.0,23729.0,0.0003]
[1659245394260,0.4543929,23730.0,23729.0,0.0003]
[1659245394472,0.45152847,23730.0,23729.0,0.0003]
[1659245394687,0.45009573,23730.0,23729.0,0.0003]
[1659245397214,0.45380002,23730.0,23729.0,0.0003]
[1659245397922,0.75794102,23730.0,23729.0,0.0003]
[1659245398163,0.45380002,23730.0,23729.0,0.0003]
[1659245398393,0.52280002,23730.0,23729.0,0.0003]
[1659245399541,0.51909573,23730.0,23729.0,0.0003]
[1659245400220,0.45009573,23730.0,23729.0,0.0003]
[1659245400438,0.50409573,23730.0,23729.0,0.0003]
[1659245400883,0.81194102,23730.0,23729.0,0.0003]
[1659245401827,0.75794102,23730.0,23729.0,0.0003]
[1659245402059,0.45380002,23730.0,23729.0,0.0003]
[1659245402280,0.40725733,23730.0,23729.0,0.03126887]
[1659245402506,0.45425733,23730.0,23729.0,0.0003]
[1659245402943,0.047,23730.0,23729.0,0.0003]
[1659245403844,0.00370429,23731.0,23729.0,0.0003]
[1659245404108,0.41096162,23731.0,23729.0,0.0003]
[1659245404546,0.047,23730.0,23729.0,0.0003]
[1659245405721,0.41096162,23731.0,23729.0,0.0003]
[1659245406391,0.45496162,23731.0,23729.0,0.0003]
[1659245406621,0.304141,23730.0,23729.0,0.0003]
[1659245406843,0.45496162,23731.0,23729.0,0.0003]
[1659245407879,0.41096162,23731.0,23729.0,0.0003]
[1659245408107,0.40725733,23731.0,23729.0,0.03126887]
[1659245408506,0.44925733,23731.0,23729.0,0.03126887]
[1659245409047,0.042,23731.0,23729.0,0.03126887]
[1659245409312,0.042,23731.0,23730.0,0.4113026]
[1659245409521,0.042,23731.0,23730.0,1.1824936]
[1659245409737,0.9179,23739.0,23730.0,1.19513708]
[1659245409953,0.40725733,23738.0,23733.0,0.210588]
[1659245411049,0.3,23737.0,23730.0,0.33042108]
[1659245411266,0.40725733,23736.0,23730.0,0.1071616]
[1659245411486,0.40725733,23736.0,23729.0,0.210928]
[1659245411699,0.40725733,23736.0,23731.0,0.210615]
[1659245412348,0.48625733,23736.0,23731.0,0.210615]
[1659245412772,0.48625733,23736.0,23731.0,0.260615]
[1659245412990,0.48625733,23736.0,23731.0,0.681803]
[1659245413198,0.079,23736.0,23732.0,0.3]
[1659245413408,0.079,23736.0,23733.0,0.24156087]
[1659245413626,0.00370429,23736.0,23733.0,0.210592]
[1659245414281,0.047,23736.0,23734.0,0.03096887]
[1659245414488,0.047,23736.0,23733.0,0.210592]
[1659245414489,0.01752597,23734.0,23733.0,0.210592]
[1659245414709,0.01752597,23734.0,23733.0,0.514733]
[1659245415354,0.01752597,23734.0,23733.0,0.54570187]
[1659245416267,0.01752597,23734.0,23733.0,0.514733]
[1659245416526,0.01752597,23734.0,23733.0,0.54570187]